[Event "*** SCC Grand Prix: Titled Tuesday Blitz"]
[Site "Chess.com"]
[Date "2020.07.14"]
[Round "1"]
[White "Maaikee"]
[Black "Airquake"]
[Result "1/2-1/2"]
[WhiteElo "2312"]
[BlackElo "2603"]
[TimeControl "180+1"]
[EndTime "10:08:27 PDT"]
[Termination "Game drawn - insufficient material"]

1. e4 {[%clk 0:02:57.2]} 1... c5 {[%clk 0:03:00]} 2. Nf3 {[%clk 0:02:54]} 2...
d6 {[%clk 0:03:00.3]} 3. d4 {[%clk 0:02:54.3]} 3... cxd4 {[%clk 0:03:01.2]} 4.
Nxd4 {[%clk 0:02:54.9]} 4... Nf6 {[%clk 0:03:01.1]} 5. Nc3 {[%clk 0:02:55.5]}
5... a6 {[%clk 0:03:00.9]} 6. h3 {[%clk 0:02:55.8]} 6... g6 {[%clk 0:02:56.1]}
7. g4 {[%clk 0:02:54.9]} 7... Bg7 {[%clk 0:02:56.6]} 8. Bg2 {[%clk 0:02:55.1]}
8... O-O {[%clk 0:02:56.8]} 9. O-O {[%clk 0:02:53.6]} 9... Nfd7 {[%clk
0:02:39.1]} 10. Be3 {[%clk 0:02:49.7]} 10... Nc6 {[%clk 0:02:39.5]} 11. Nce2
{[%clk 0:02:47.2]} 11... Qc7 {[%clk 0:02:38.3]} 12. c3 {[%clk 0:02:46.8]} 12...
Nce5 {[%clk 0:02:34.3]} 13. b3 {[%clk 0:02:37.8]} 13... Rb8 {[%clk 0:02:33.1]}
14. f4 {[%clk 0:02:35.8]} 14... Nc6 {[%clk 0:02:33]} 15. f5 {[%clk 0:02:28.8]}
15... Nce5 {[%clk 0:02:29.9]} 16. Nf4 {[%clk 0:02:22.5]} 16... Qd8 {[%clk
0:01:54.4]} 17. Nd5 {[%clk 0:01:44.8]} 17... Nf6 {[%clk 0:01:44.3]} 18. Nxf6+
{[%clk 0:01:36.6]} 18... Bxf6 {[%clk 0:01:44.1]} 19. g5 {[%clk 0:01:36.5]} 19...
Bg7 {[%clk 0:01:42.7]} 20. Qe2 {[%clk 0:01:21.4]} 20... b5 {[%clk 0:01:42.6]}
21. Rad1 {[%clk 0:01:12.5]} 21... Bb7 {[%clk 0:01:42]} 22. Qf2 {[%clk
0:01:01.9]} 22... Rc8 {[%clk 0:01:33.2]} 23. f6 {[%clk 0:00:59.8]} 23... exf6
{[%clk 0:01:33.6]} 24. gxf6 {[%clk 0:01:00.7]} 24... Bh8 {[%clk 0:01:34.2]} 25.
Nf5 {[%clk 0:00:25.3]} 25... gxf5 {[%clk 0:01:20.5]} 26. Qg3+ {[%clk 0:00:25.6]}
26... Ng6 {[%clk 0:01:20.5]} 27. Rxd6 {[%clk 0:00:24.7]} 27... Qe8 {[%clk
0:00:54.5]} 28. exf5 {[%clk 0:00:24.5]} 28... Bxg2 {[%clk 0:00:53.9]} 29. fxg6
{[%clk 0:00:20]} 29... fxg6 {[%clk 0:00:42.6]} 30. Kxg2 {[%clk 0:00:20.4]} 30...
Rxc3 {[%clk 0:00:42.6]} 31. Qg5 {[%clk 0:00:11.9]} 31... Qf7 {[%clk 0:00:12.8]}
32. Bd4 {[%clk 0:00:10.3]} 32... Rc2+ {[%clk 0:00:12.8]} 33. Kg1 {[%clk
0:00:10.7]} 33... Re8 {[%clk 0:00:10.5]} 34. Qd5 {[%clk 0:00:09.5]} 34... Qxd5
{[%clk 0:00:03.9]} 35. Rxd5 {[%clk 0:00:10.4]} 35... Rc7 {[%clk 0:00:04.6]} 36.
Be5 {[%clk 0:00:05.2]} 36... Rf7 {[%clk 0:00:04.3]} 37. Bd4 {[%clk 0:00:05.1]}
37... h6 {[%clk 0:00:04.3]} 38. Rd6 {[%clk 0:00:05]} 38... Ra8 {[%clk 0:00:03]}
39. Re1 {[%clk 0:00:04.1]} 39... g5 {[%clk 0:00:02.7]} 40. Rde6 {[%clk 0:00:04]}
40... Kh7 {[%clk 0:00:02.7]} 41. Re7 {[%clk 0:00:03.9]} 41... Kg6 {[%clk
0:00:02.7]} 42. Rxf7 {[%clk 0:00:04]} 42... Kxf7 {[%clk 0:00:03.6]} 43. Re7+
{[%clk 0:00:04.3]} 43... Kg6 {[%clk 0:00:04.3]} 44. Rd7 {[%clk 0:00:03.2]} 44...
Bxf6 {[%clk 0:00:04.1]} 45. Rd6 {[%clk 0:00:03.5]} 45... Rf8 {[%clk 0:00:04.6]}
46. Rxa6 {[%clk 0:00:03.9]} 46... Kf5 {[%clk 0:00:05.1]} 47. Rxf6+ {[%clk
0:00:04.5]} 47... Rxf6 {[%clk 0:00:06]} 48. Bxf6 {[%clk 0:00:05]} 48... Kxf6
{[%clk 0:00:06.9]} 49. Kf2 {[%clk 0:00:05.6]} 49... Ke5 {[%clk 0:00:07.2]} 50.
Ke3 {[%clk 0:00:06]} 50... h5 {[%clk 0:00:07.7]} 51. a4 {[%clk 0:00:05.8]} 51...
bxa4 {[%clk 0:00:07.7]} 52. bxa4 {[%clk 0:00:06.7]} 52... Kd5 {[%clk 0:00:07.5]}
53. a5 {[%clk 0:00:06.3]} 53... Kc6 {[%clk 0:00:07.8]} 54. Ke4 {[%clk
0:00:06.7]} 54... Kb5 {[%clk 0:00:04.1]} 55. Kf5 {[%clk 0:00:06.5]} 55... g4
{[%clk 0:00:04.7]} 56. hxg4 {[%clk 0:00:06.2]} 56... h4 {[%clk 0:00:05.1]} 57.
g5 {[%clk 0:00:06.4]} 57... h3 {[%clk 0:00:05.7]} 58. g6 {[%clk 0:00:07.1]}
58... h2 {[%clk 0:00:06.6]} 59. g7 {[%clk 0:00:07.8]} 59... h1=Q {[%clk
0:00:07.5]} 60. g8=Q {[%clk 0:00:08.5]} 60... Qf3+ {[%clk 0:00:04.7]} 61. Kg6
{[%clk 0:00:08.2]} 61... Qg4+ {[%clk 0:00:04.7]} 62. Kf7 {[%clk 0:00:08.5]}
62... Qc4+ {[%clk 0:00:04.3]} 63. Kf8 {[%clk 0:00:08.4]} 63... Qc8+ {[%clk
0:00:04.5]} 64. Kf7 {[%clk 0:00:08.8]} 64... Qf5+ {[%clk 0:00:04.7]} 65. Kg7
{[%clk 0:00:08.9]} 65... Qg5+ {[%clk 0:00:05]} 66. Kf7 {[%clk 0:00:09.2]} 66...
Qxg8+ {[%clk 0:00:05.4]} 67. Kxg8 {[%clk 0:00:09.5]} 67... Kxa5 {[%clk
0:00:06.3]} 1/2-1/2

[Event "*** SCC Grand Prix: Titled Tuesday Blitz"]
[Site "Chess.com"]
[Date "2020.07.14"]
[Round "1"]
[White "Yana_pro"]
[Black "UCantHandleDenker"]
[Result "1-0"]
[WhiteElo "2228"]
[BlackElo "2530"]
[TimeControl "180+1"]
[EndTime "10:08:28 PDT"]
[Termination "Yana_pro won by resignation"]

1. e4 {[%clk 0:02:58.4]} 1... c5 {[%clk 0:02:58.6]} 2. b4 {[%clk 0:02:57.3]}
2... cxb4 {[%clk 0:02:57]} 3. a3 {[%clk 0:02:56.4]} 3... bxa3 {[%clk 0:02:52.7]}
4. Nxa3 {[%clk 0:02:55.5]} 4... d6 {[%clk 0:02:52.4]} 5. Bb2 {[%clk 0:02:52.6]}
5... Nd7 {[%clk 0:02:51.2]} 6. Bc4 {[%clk 0:02:31.4]} 6... Ngf6 {[%clk 0:02:50]}
7. d3 {[%clk 0:02:13.9]} 7... g6 {[%clk 0:02:48.7]} 8. g4 {[%clk 0:02:01.2]}
8... Bg7 {[%clk 0:02:47]} 9. g5 {[%clk 0:01:46.6]} 9... Nh5 {[%clk 0:02:45.5]}
10. d4 {[%clk 0:01:27.9]} 10... O-O {[%clk 0:02:38.6]} 11. Ne2 {[%clk
0:01:26.9]} 11... Nb6 {[%clk 0:02:31]} 12. Bb3 {[%clk 0:01:24.4]} 12... Bg4
{[%clk 0:02:29.6]} 13. Qd2 {[%clk 0:01:23.7]} 13... Bf3 {[%clk 0:02:27.5]} 14.
Rg1 {[%clk 0:01:15.5]} 14... Bxe4 {[%clk 0:02:26.5]} 15. Ng3 {[%clk 0:01:13.6]}
15... Nxg3 {[%clk 0:02:24.7]} 16. hxg3 {[%clk 0:01:12.3]} 16... Rc8 {[%clk
0:02:21.5]} 17. Qe2 {[%clk 0:01:04.6]} 17... Bf5 {[%clk 0:01:56.9]} 18. Rh1
{[%clk 0:01:00.5]} 18... d5 {[%clk 0:01:52.2]} 19. g4 {[%clk 0:00:58.2]} 19...
Be6 {[%clk 0:01:47.8]} 20. f4 {[%clk 0:00:55.9]} 20... Qd7 {[%clk 0:01:38.8]}
21. Qh2 {[%clk 0:00:53.8]} 21... Rfd8 {[%clk 0:01:37.3]} 22. Qxh7+ {[%clk
0:00:30]} 22... Kf8 {[%clk 0:01:36.7]} 23. Rd1 {[%clk 0:00:29.7]} 23... Bxg4
{[%clk 0:01:31.5]} 24. Rd2 {[%clk 0:00:28]} 24... Qf5 {[%clk 0:01:19.2]} 25.
Rdh2 {[%clk 0:00:18.8]} 25... Qe4+ {[%clk 0:01:18.5]} 26. Kd2 {[%clk 0:00:19.1]}
26... Bh5 {[%clk 0:01:18.1]} 27. Rxh5 {[%clk 0:00:16.8]} 27... gxh5 {[%clk
0:01:16.6]} 28. Qxe4 {[%clk 0:00:17.4]} 28... dxe4 {[%clk 0:01:16.1]} 29. Rxh5
{[%clk 0:00:14.9]} 29... Bxd4 {[%clk 0:01:08.4]} 30. Bxd4 {[%clk 0:00:13.9]}
30... Rxd4+ {[%clk 0:01:08]} 31. Ke3 {[%clk 0:00:14.6]} 31... Rd6 {[%clk
0:01:05.8]} 32. Nb5 {[%clk 0:00:12]} 32... Rc3+ {[%clk 0:01:02.4]} 33. Nxc3
{[%clk 0:00:11.6]} 33... Kg7 {[%clk 0:00:57]} 34. Nxe4 {[%clk 0:00:11.4]} 34...
Rc6 {[%clk 0:00:57.5]} 35. f5 {[%clk 0:00:11.2]} 35... f6 {[%clk 0:00:54.8]} 36.
g6 {[%clk 0:00:10.8]} 36... Nc4+ {[%clk 0:00:53]} 37. Bxc4 {[%clk 0:00:10]}
37... Rxc4 {[%clk 0:00:52.6]} 38. Rh7+ {[%clk 0:00:10.9]} 38... Kg8 {[%clk
0:00:51.8]} 39. Rxe7 {[%clk 0:00:10.8]} 39... Rc6 {[%clk 0:00:50.2]} 40. c3
{[%clk 0:00:08.6]} 40... a5 {[%clk 0:00:49.2]} 41. Rxb7 {[%clk 0:00:08.8]} 41...
Ra6 {[%clk 0:00:49.8]} 42. c4 {[%clk 0:00:08.1]} 42... a4 {[%clk 0:00:49.7]} 43.
Rb2 {[%clk 0:00:08]} 43... a3 {[%clk 0:00:49.6]} 44. Ra2 {[%clk 0:00:08.5]}
44... Kg7 {[%clk 0:00:49.9]} 45. c5 {[%clk 0:00:08.8]} 45... Kh6 {[%clk
0:00:49.1]} 46. c6 {[%clk 0:00:09.1]} 46... Rxc6 {[%clk 0:00:48.2]} 47. Rxa3
{[%clk 0:00:08.8]} 47... Rc1 {[%clk 0:00:46.3]} 48. Nxf6 {[%clk 0:00:08.6]}
48... Re1+ {[%clk 0:00:45.5]} 49. Kf2 {[%clk 0:00:08.8]} 49... Re5 {[%clk
0:00:45]} 50. Ng4+ {[%clk 0:00:09]} 50... Kg5 {[%clk 0:00:40.5]} 51. Nxe5 {[%clk
0:00:09.1]} 51... Kxf5 {[%clk 0:00:41.4]} 52. Rf3+ {[%clk 0:00:08.7]} 52... Ke4
{[%clk 0:00:37.6]} 53. g7 {[%clk 0:00:08.5]} 53... Kd4 {[%clk 0:00:38]} 54. g8=Q
{[%clk 0:00:08.5]} 54... Ke4 {[%clk 0:00:38.9]} 55. Qd5+ {[%clk 0:00:08.2]}
55... Kxd5 {[%clk 0:00:38.7]} 56. Nd3 {[%clk 0:00:08.6]} 56... Ke4 {[%clk
0:00:38.6]} 57. Ke2 {[%clk 0:00:08.9]} 57... Kd4 {[%clk 0:00:39.5]} 58. Re3
{[%clk 0:00:09.4]} 58... Kc3 {[%clk 0:00:39.6]} 59. Nf2+ {[%clk 0:00:10.3]}
59... Kd4 {[%clk 0:00:40.4]} 60. Nh1 {[%clk 0:00:10.9]} 60... Kc4 {[%clk
0:00:40.6]} 61. Kf3 {[%clk 0:00:11.8]} 61... Kd4 {[%clk 0:00:41.5]} 62. Kf4
{[%clk 0:00:12.1]} 62... Kd5 {[%clk 0:00:41.8]} 63. Kf5 {[%clk 0:00:11.4]} 63...
Kd4 {[%clk 0:00:42.7]} 64. Kf4 {[%clk 0:00:11.8]} 64... Kd5 {[%clk 0:00:40.2]}
65. Re4 {[%clk 0:00:12.7]} 65... Kc5 {[%clk 0:00:39.9]} 66. Kf5 {[%clk
0:00:13.5]} 66... Kd5 {[%clk 0:00:40.3]} 67. Ng3 {[%clk 0:00:12.4]} 67... Kd6
{[%clk 0:00:40.2]} 68. Re5 {[%clk 0:00:12.1]} 68... Kc6 {[%clk 0:00:40.1]} 69.
Ke4 {[%clk 0:00:12.5]} 69... Kd6 {[%clk 0:00:41]} 70. Kd4 {[%clk 0:00:12.8]}
70... Kc6 {[%clk 0:00:40.8]} 71. Rh5 {[%clk 0:00:13.4]} 71... Kd6 {[%clk
0:00:41]} 72. Rh6+ {[%clk 0:00:13.4]} 72... Ke7 {[%clk 0:00:41.6]} 73. Kd5
{[%clk 0:00:14.1]} 73... Kf7 {[%clk 0:00:42.3]} 74. Ra6 {[%clk 0:00:14]} 74...
Ke7 {[%clk 0:00:41.8]} 75. Rb6 {[%clk 0:00:14.9]} 75... Kf7 {[%clk 0:00:41.2]}
76. Ke5 {[%clk 0:00:15.1]} 76... Kg7 {[%clk 0:00:40.9]} 77. Kf5 {[%clk
0:00:15.3]} 77... Kf7 {[%clk 0:00:41.1]} 78. Rb7+ {[%clk 0:00:15.3]} 78... Ke8
{[%clk 0:00:41.5]} 79. Ke6 {[%clk 0:00:15.5]} 79... Kd8 {[%clk 0:00:42.4]} 80.
Rh7 {[%clk 0:00:15.4]} 80... Kc8 {[%clk 0:00:42.3]} 81. Kd6 {[%clk 0:00:14.8]}
1-0

[Event "*** SCC Grand Prix: Titled Tuesday Blitz"]
[Site "Chess.com"]
[Date "2020.07.14"]
[Round "1"]
[White "Bastiandash"]
[Black "AndrewMaco"]
[Result "1-0"]
[WhiteElo "2327"]
[BlackElo "2608"]
[TimeControl "180+1"]
[EndTime "10:08:29 PDT"]
[Termination "Bastiandash won by checkmate"]

1. Nf3 {[%clk 0:03:00.9]} 1... Nf6 {[%clk 0:02:59.6]} 2. d4 {[%clk 0:03:01.5]}
2... d5 {[%clk 0:02:57.9]} 3. c3 {[%clk 0:02:59.5]} 3... e6 {[%clk 0:02:48.4]}
4. Bg5 {[%clk 0:02:56.9]} 4... h6 {[%clk 0:02:47.4]} 5. Bh4 {[%clk 0:02:55.4]}
5... Be7 {[%clk 0:02:44.4]} 6. e3 {[%clk 0:02:53.5]} 6... Nbd7 {[%clk
0:02:41.9]} 7. Bd3 {[%clk 0:02:49.8]} 7... b6 {[%clk 0:02:42]} 8. Nbd2 {[%clk
0:02:46.8]} 8... Bb7 {[%clk 0:02:42.4]} 9. Qe2 {[%clk 0:02:46.2]} 9... c5 {[%clk
0:02:35.2]} 10. O-O {[%clk 0:02:46.2]} 10... O-O {[%clk 0:02:24.5]} 11. Ne5
{[%clk 0:02:42.9]} 11... Nxe5 {[%clk 0:02:12.9]} 12. dxe5 {[%clk 0:02:39.8]}
12... Nd7 {[%clk 0:02:12.2]} 13. Bxe7 {[%clk 0:02:38.2]} 13... Qxe7 {[%clk
0:02:13.1]} 14. f4 {[%clk 0:02:39]} 14... f6 {[%clk 0:02:12.9]} 15. exf6 {[%clk
0:02:30.6]} 15... Nxf6 {[%clk 0:02:09.7]} 16. e4 {[%clk 0:02:30.4]} 16... c4
{[%clk 0:02:00.8]} 17. Bc2 {[%clk 0:02:28.8]} 17... Qc5+ {[%clk 0:01:57]} 18.
Kh1 {[%clk 0:02:28.9]} 18... d4 {[%clk 0:01:56.5]} 19. cxd4 {[%clk 0:02:18.9]}
19... Qxd4 {[%clk 0:01:56.4]} 20. Nxc4 {[%clk 0:01:36.3]} 20... Rac8 {[%clk
0:01:35.7]} 21. b3 {[%clk 0:01:21.7]} 21... Rfd8 {[%clk 0:01:21.4]} 22. Rad1
{[%clk 0:01:15.1]} 22... Qc5 {[%clk 0:01:20.7]} 23. e5 {[%clk 0:01:08.6]} 23...
Ne8 {[%clk 0:01:19]} 24. Be4 {[%clk 0:01:03.5]} 24... Bxe4 {[%clk 0:01:15.1]}
25. Qxe4 {[%clk 0:01:04.4]} 25... b5 {[%clk 0:01:15.1]} 26. Ne3 {[%clk
0:00:48.2]} 26... Nc7 {[%clk 0:01:05.6]} 27. f5 {[%clk 0:00:45.4]} 27... Rxd1
{[%clk 0:01:05.1]} 28. Rxd1 {[%clk 0:00:44.8]} 28... exf5 {[%clk 0:01:04.1]} 29.
Nxf5 {[%clk 0:00:45.7]} 29... Re8 {[%clk 0:01:02.7]} 30. Re1 {[%clk 0:00:40.5]}
30... Ne6 {[%clk 0:00:58.9]} 31. Nd6 {[%clk 0:00:35.4]} 31... Rf8 {[%clk
0:00:56.2]} 32. h3 {[%clk 0:00:29.9]} 32... a6 {[%clk 0:00:52.1]} 33. Kh2 {[%clk
0:00:22]} 33... Kh8 {[%clk 0:00:48.5]} 34. Re2 {[%clk 0:00:14.6]} 34... Rf1
{[%clk 0:00:45.6]} 35. Qe3 {[%clk 0:00:13.1]} 35... Qd5 {[%clk 0:00:42]} 36. Qe4
{[%clk 0:00:08.4]} 36... Qd1 {[%clk 0:00:29.4]} 37. Qe3 {[%clk 0:00:05.9]} 37...
Rh1+ {[%clk 0:00:23.3]} 38. Kg3 {[%clk 0:00:06]} 38... Qb1 {[%clk 0:00:21.2]}
39. Nf7+ {[%clk 0:00:05.2]} 39... Kg8 {[%clk 0:00:20.5]} 40. Nd6 {[%clk
0:00:03.1]} 40... Qg6+ {[%clk 0:00:20.6]} 41. Kf2 {[%clk 0:00:02.7]} 41... Rh2
{[%clk 0:00:20.4]} 42. Qf3 {[%clk 0:00:02.4]} 42... Rh1 {[%clk 0:00:19.9]} 43.
Re3 {[%clk 0:00:02.2]} 43... Ra1 {[%clk 0:00:19.4]} 44. Re2 {[%clk 0:00:03.1]}
44... Kh7 {[%clk 0:00:18]} 45. Qe4 {[%clk 0:00:02.9]} 45... Qxe4 {[%clk
0:00:15.6]} 46. Nxe4 {[%clk 0:00:03.8]} 46... Kg6 {[%clk 0:00:15.8]} 47. g3
{[%clk 0:00:03.9]} 47... Kf5 {[%clk 0:00:16]} 48. Nd6+ {[%clk 0:00:04.3]} 48...
Kg6 {[%clk 0:00:16.6]} 49. Nc8 {[%clk 0:00:04.6]} 49... a5 {[%clk 0:00:16.5]}
50. Ne7+ {[%clk 0:00:04.8]} 50... Kf7 {[%clk 0:00:15.9]} 51. Nd5 {[%clk
0:00:05.4]} 51... a4 {[%clk 0:00:15.7]} 52. bxa4 {[%clk 0:00:05.7]} 52... bxa4
{[%clk 0:00:16.6]} 53. Nc3 {[%clk 0:00:06.2]} 53... a3 {[%clk 0:00:16.1]} 54.
Nb5 {[%clk 0:00:06.3]} 54... Nd4 {[%clk 0:00:16]} 55. Nxd4 {[%clk 0:00:06.3]}
55... Ke7 {[%clk 0:00:13.9]} 56. e6 {[%clk 0:00:07.2]} 56... Rc1 {[%clk
0:00:13.4]} 57. Nf5+ {[%clk 0:00:07.2]} 57... Kf6 {[%clk 0:00:13.8]} 58. e7
{[%clk 0:00:07.2]} 58... Rc8 {[%clk 0:00:11.3]} 59. Nd6 {[%clk 0:00:07.1]} 59...
Ra8 {[%clk 0:00:11.2]} 60. e8=Q {[%clk 0:00:07.3]} 60... Rxe8 {[%clk 0:00:11.8]}
61. Nxe8+ {[%clk 0:00:08.2]} 61... Kf7 {[%clk 0:00:12.5]} 62. Nc7 {[%clk
0:00:08.7]} 62... Kf6 {[%clk 0:00:13.4]} 63. Nb5 {[%clk 0:00:09.6]} 63... g5
{[%clk 0:00:13.7]} 64. Nxa3 {[%clk 0:00:10.5]} 64... g4 {[%clk 0:00:14.3]} 65.
hxg4 {[%clk 0:00:11.1]} 65... Kg5 {[%clk 0:00:14.3]} 66. Nc4 {[%clk 0:00:10]}
66... Kxg4 {[%clk 0:00:15.2]} 67. Re4+ {[%clk 0:00:10.2]} 67... Kh3 {[%clk
0:00:15.7]} 68. Kf3 {[%clk 0:00:11.1]} 68... h5 {[%clk 0:00:16.1]} 69. Rh4#
{[%clk 0:00:11.3]} 1-0

[Event "*** SCC Grand Prix: Titled Tuesday Blitz"]
[Site "Chess.com"]
[Date "2020.07.14"]
[Round "1"]
[White "swayamsm"]
[Black "GMCarbone"]
[Result "1-0"]
[WhiteElo "2619"]
[BlackElo "2306"]
[TimeControl "180+1"]
[EndTime "10:08:29 PDT"]
[Termination "swayamsm won on time"]

1. d4 {[%clk 0:03:00.9]} 1... Nf6 {[%clk 0:02:58.7]} 2. Nf3 {[%clk 0:03:01.8]}
2... e6 {[%clk 0:02:58.8]} 3. Bf4 {[%clk 0:03:01.9]} 3... d6 {[%clk 0:02:58.4]}
4. e3 {[%clk 0:03:01.7]} 4... Nbd7 {[%clk 0:02:58.7]} 5. Nbd2 {[%clk 0:02:59.3]}
5... b6 {[%clk 0:02:59.1]} 6. h3 {[%clk 0:02:58.3]} 6... Bb7 {[%clk 0:02:59.4]}
7. Be2 {[%clk 0:02:57]} 7... g6 {[%clk 0:02:59.5]} 8. a4 {[%clk 0:02:53.6]} 8...
a5 {[%clk 0:02:58.4]} 9. c3 {[%clk 0:02:49.3]} 9... Qe7 {[%clk 0:02:57]} 10. Bh2
{[%clk 0:02:46.6]} 10... Bg7 {[%clk 0:02:56.8]} 11. O-O {[%clk 0:02:42.4]} 11...
Ne4 {[%clk 0:02:50.1]} 12. Nxe4 {[%clk 0:02:41.3]} 12... Bxe4 {[%clk 0:02:50.8]}
13. Nd2 {[%clk 0:02:42]} 13... Bb7 {[%clk 0:02:50.6]} 14. Bf3 {[%clk 0:02:42.9]}
14... Bxf3 {[%clk 0:02:50.5]} 15. Qxf3 {[%clk 0:02:43.8]} 15... O-O {[%clk
0:02:51]} 16. Qc6 {[%clk 0:02:40.6]} 16... Nf6 {[%clk 0:02:48.7]} 17. e4 {[%clk
0:02:34.3]} 17... Qd7 {[%clk 0:02:40.2]} 18. Qb5 {[%clk 0:02:32.3]} 18... Rfe8
{[%clk 0:02:15.2]} 19. e5 {[%clk 0:02:30.5]} 19... dxe5 {[%clk 0:02:01.6]} 20.
Bxe5 {[%clk 0:02:22.5]} 20... Rad8 {[%clk 0:01:50.3]} 21. Qxd7 {[%clk
0:02:17.6]} 21... Rxd7 {[%clk 0:01:49.4]} 22. Rfe1 {[%clk 0:02:17]} 22... Red8
{[%clk 0:01:48.1]} 23. Nc4 {[%clk 0:02:15.8]} 23... Nd5 {[%clk 0:01:47.3]} 24.
Bxg7 {[%clk 0:02:15.2]} 24... Kxg7 {[%clk 0:01:48.2]} 25. Ne5 {[%clk 0:02:15.8]}
25... Rd6 {[%clk 0:01:48.2]} 26. g3 {[%clk 0:02:12.4]} 26... Nf6 {[%clk
0:01:43.3]} 27. Kg2 {[%clk 0:02:10]} 27... Nd7 {[%clk 0:01:42.8]} 28. f4 {[%clk
0:02:01.8]} 28... Nxe5 {[%clk 0:01:42.4]} 29. Rxe5 {[%clk 0:02:02.7]} 29... Rd5
{[%clk 0:01:42.2]} 30. Rae1 {[%clk 0:02:01.3]} 30... Kf6 {[%clk 0:01:42]} 31.
Kf3 {[%clk 0:02:01]} 31... h5 {[%clk 0:01:37.8]} 32. Rxd5 {[%clk 0:01:29]} 32...
Rxd5 {[%clk 0:01:35.1]} 33. Re5 {[%clk 0:01:27.1]} 33... Rxe5 {[%clk 0:01:31.6]}
34. fxe5+ {[%clk 0:01:28]} 34... Kf5 {[%clk 0:01:28.2]} 35. g4+ {[%clk
0:01:26.8]} 35... hxg4+ {[%clk 0:01:27.6]} 36. hxg4+ {[%clk 0:01:26.7]} 36...
Kg5 {[%clk 0:01:28]} 37. Kg3 {[%clk 0:01:26.4]} 37... c6 {[%clk 0:01:10]} 38. c4
{[%clk 0:01:22.9]} 38... f5 {[%clk 0:00:51.8]} 39. exf6 {[%clk 0:01:17.9]} 39...
Kxf6 {[%clk 0:00:52.7]} 40. Kf4 {[%clk 0:01:11.7]} 40... c5 {[%clk 0:00:41.7]}
41. d5 {[%clk 0:01:07.5]} 41... exd5 {[%clk 0:00:14.8]} 42. cxd5 {[%clk
0:01:08.4]} 42... g5+ {[%clk 0:00:06.6]} 43. Ke4 {[%clk 0:01:07.7]} 43... Ke7
{[%clk 0:00:06.5]} 44. Kf5 {[%clk 0:00:56.7]} 44... c4 {[%clk 0:00:06.3]} 45.
Kxg5 {[%clk 0:00:56.8]} 45... b5 {[%clk 0:00:06.7]} 46. axb5 {[%clk 0:00:20.6]}
46... a4 {[%clk 0:00:07.6]} 47. b6 {[%clk 0:00:20.8]} 47... Kd6 {[%clk
0:00:06.7]} 48. b7 {[%clk 0:00:20]} 48... Kc7 {[%clk 0:00:06.6]} 49. Kf6 {[%clk
0:00:16.4]} 49... c3 {[%clk 0:00:05.2]} 50. bxc3 {[%clk 0:00:14.9]} 50... a3
{[%clk 0:00:05.5]} 51. d6+ {[%clk 0:00:12.6]} 51... Kxb7 {[%clk 0:00:04.5]} 52.
d7 {[%clk 0:00:13.5]} 52... a2 {[%clk 0:00:04.2]} 53. d8=Q {[%clk 0:00:12.9]}
53... a1=Q {[%clk 0:00:05.1]} 54. Qd5+ {[%clk 0:00:13.1]} 54... Kc7 {[%clk
0:00:05]} 55. Qe5+ {[%clk 0:00:12.7]} 55... Kb7 {[%clk 0:00:04.7]} 56. g5 {[%clk
0:00:13.2]} 56... Qf1+ {[%clk 0:00:03.4]} 57. Ke7 {[%clk 0:00:11.9]} 1-0